Cogmind - Beta 14 @@@ ROGUE MODE // 2025.01.16 @ 19:30:15 Player: Doobadoop Result: Destroyed by Y-45 Defender with Heavy Assault Rifle Performance ------------- Evolutions (1) 500 Regions Visited (2) 400 Robots Destroyed (19) 95 Value Destroyed (293) 293 Prototype IDs (0) 0 Alien Tech Used (0) 0 Bonus (0) 0 TOTAL SCORE: 1288 Bonus ------- None Cogmind --------- Core Integrity 0/400 Matter 270/300 Energy 100/100 System Corruption 0% Temperature Cool (9) Movement Core (50) Location -9/Materials Parts ------- > --- POWER (1) -------- (None) > --- PROPULSION (2) --- (None) > --- UTILITY (4) ------ Weight Redist. System > --- WEAPON (2) ------- (None) > --- INVENTORY (5) ---- Light Ion Engine Improved Ion Engine Large Storage Unit High-capacity Storage Unit High-capacity Matter Pod (0) Peak State ------------ > --- POWER ------------ Ion Engine > --- PROPULSION ------- Light Treads Light Treads > --- UTILITY ---------- Large Storage Unit Weight Redist. System > --- WEAPON ----------- Assault Rifle Improved Light Cannon > --- INVENTORY -------- Light Ion Engine High-capacity Storage Unit High-capacity Matter Pod Medium Laser Light Assault Rifle Light Assault Rifle Grenade Launcher [Rating: 9] Favorites ----------- Power Ion Engine Engine Ion Engine Propulsion Light Treads Treads Light Treads Utility Large Storage Unit Device Weight Redist. System Storage Large Storage Unit Weapon Assault Rifle Energy Gun Medium Laser Ballistic Gun Assault Rifle Ballistic Cannon Improved Light Cannon Launcher Grenade Launcher Special Melee Weapon Datajack Build | -11 -10 -9 ------- Run | Yrd Mat Mat Slots Evolved 2 | . . 2 Power . | . . . Propulsion . | . . . Utility 2 | . . 2 Weapon . | . . . Parts Attached 17 | 6 2 9 Power 1 | 1 . . Engine 1 | 1 . . Core . | . . . Reactor . | . . . Propulsion 4 | 2 . 2 Treads 4 | 2 . 2 Leg . | . . . Wheel . | . . . Hover . | . . . Flight . | . . . Utility 3 | 1 1 1 Device 1 | . . 1 Storage 2 | 1 1 . Processor . | . . . Hackware . | . . . Protection . | . . . Artifact . | . . . Weapon 9 | 2 1 6 Energy Gun 2 | 1 . 1 Energy Cannon . | . . . Ballistic Gun 3 | 1 . 2 Ballistic Cannon 1 | . . 1 Launcher 2 | . 1 1 Special Weapon . | . . . Impact Weapon . | . . . Slashing Weapon . | . . . Piercing Weapon . | . . . Special Melee Weapon 1 | . . 1 Unidentified Prototypes . | . . . Parts Lost 8 | . . 8 Power 1 | . . 1 Propulsion 2 | . . 2 Utility . | . . . Weapon 5 | . . 5 Highest Loss Streak 4 | . . 4 To Critical Strikes . | . . . Average Slot Usage (%) 70 | . 85 60 Engine 10 | . 14 8 Treads 20 | . 28 15 Device 4 | . . 7 Storage 11 | . 14 9 Ballistic Gun 11 | . 14 9 Launcher 9 | . 12 8 Peak Build Rating 9 | 6 7 9 Average Rating 5 | 4 6 6 On Entrance 4 | . 6 6 Naked Turns . | . . . Heaviest Build 30 | 14 30 30 Greatest Support 46 | 40 40 46 Greatest Overweight (x) 3 | . . 3 Average Overweight (x) . | . . . Largest Inventory Capacity 15 | 8 15 15 Average Capacity 13 | 7 14 13 Most Carried 7 | 5 5 7 Average Carried 4 | 1 2 5 Final Capacity 15 | 8 15 5 Final Carried 5 | 1 5 5 Class Distribution -------------------- 100% | Mutant Dominant Class ---------------- Mutant | -10/Materials Mutant | -9/Materials Resources | -11 -10 -9 ----------- Run | Yrd Mat Mat Matter Collected 422 | 241 21 160 Remotely . | . . . Salvage Created 236 | . 21 215 Parts 32 | . 6 26 Haulers Intercepted . | . . . Recyclers Shooed 1 | . . 1 Parts Field Recycled . | . . . Retrieved Matter . | . . . Parts Self-Destructed . | . . . Prevented . | . . . Kills | -11 -10 -9 ------- Run | Yrd Mat Mat Combat Hostiles Destroyed 14 | . 3 11 Guns 3 | . . 3 AOE 11 | . 3 8 Classes Destroyed 7 | . 2 5 Builder 3 | . . 3 Recycler 1 | . . 1 Operator 1 | . 1 . Swarmer 11 | . 3 8 Grunt 1 | . . 1 Duelist 1 | . . 1 Sentry 1 | . . 1 Best Kill Streak 11 | . 3 11 Combat Bots Only 8 | . 3 8 Max Kills in Single Turn 3 | . 3 3 Gunslinging . | . . . Exploded 3 | . 3 2 Melee . | . . . Uniques/NPCs Destroyed . | . . . Combat | -11 -10 -9 -------- Run | Yrd Mat Mat Hostile Shots Fired 104 | . 10 94 Missed 28 | . 3 25 Damage Taken 1191 | . 63 1128 Core 408 | . . 408 Absorbed by Shields . | . . . Core Remaining (%) 100 | 100 100 . Volleys Fired 41 | . 1 40 Largest 2 | . 1 2 Hottest 70 | . 30 70 Shots Fired 61 | . 1 60 Gun 44 | . . 44 Cannon 7 | . . 7 Launcher 10 | . 1 9 Special . | . . . Kinetic 46 | . . 46 Thermal 5 | . . 5 Explosive 10 | . 1 9 Electromagnetic . | . . . Robot Hit Streak 8 | . . 8 Robot Miss Streak 3 | . . 3 Penetration Max . | . . . Secondary Targets 2 | . . 2 Max Gunslinging Chain 1 | . . 1 Shots Hit Robots 42 | . . 42 Core Hits 30 | . 3 27 Critical Kills . | . . . Critical Parts Destroyed . | . . . Critical Strikes . | . . . Melee Attacks 3 | . . 3 Impact . | . . . Slashing . | . . . Piercing . | . . . Sneak Attacks . | . . . Combat Hostiles . | . . . Follow-up Attacks . | . . . Damage Inflicted 1239 | 2 139 1098 Guns 325 | . . 325 Cannons 131 | . . 131 Explosions 725 | . 136 589 Melee . | . . . Ramming 58 | 2 3 53 Kinetic 393 | . . 393 Thermal 63 | . . 63 Explosive 725 | . 136 589 Electromagnetic . | . . . Impact . | . . . Slashing . | . . . Piercing . | . . . Highest Corruption . | . . . Average Corruption . | . . . Corruption Purged . | . . . Corruption Blocked . | . . . Overload Shots . | . . . Overflow Damage 50 | . . 50 Projectiles . | . . . Explosions 50 | . . 50 Melee . | . . . Knockbacks 4 | . . 4 Impact . | . . . Kinetic 3 | . . 3 Secondary 1 | . . 1 Self-Inflicted Damage 52 | . . 52 Shots 2 | . . 2 Rammed 17 | 1 . 16 Targets Rammed 19 | 1 1 17 Kicked . | . . . Crushed 2 | . 1 1 Highest Temperature 76 | . . 76 Average Temperature 25 | . . 25 Received Heat Transfer 216 | . . 216 Siege Activations . | . . . Robots Corrupted . | . . . Combat Hostiles . | . . . Parts Fried . | . . . Impact Corruptions . | . . . Robots Melted . | . . . Combat Hostiles . | . . . Parts Melted . | . . . Heat Transferred 185 | . . 185 Parts Sabotaged . | . . . Parts Stolen . | . . . Parts Stripped . | . . . Power Chain Reactions . | . . . Alert | -11 -10 -9 ------- Run | Yrd Mat Mat Peak Influence 347 | . 117 347 Initial 49 | . . 49 Average 121 | . 14 220 Maximum Alert Level 1 | . . 1 Low Security (%) 66 | 100 100 35 Level 1 33 | . . 64 Level 2 . | . . . Level 3 . | . . . Level 4 . | . . . Level 5 . | . . . High Security . | . . . Max Security . | . . . Squads Dispatched 2 | . 2 . Investigation . | . . . Extermination . | . . . Reinforcement 2 | . 2 . Assault . | . . . Garrison . | . . . Intercept . | . . . Searches Triggered . | . . . Construction Impeded . | . . . Haulers Reinforced . | . . . Active Scanning Responses . | . . . Cargo Convoy Interrupts . | . . . Stealth | -11 -10 -9 --------- Run | Yrd Mat Mat Distress Signals . | . . . Communications Jammed . | . . . Distress Signals . | . . . Times Spotted 20 | . 6 14 Peak Tracking Total 6 | . 4 6 Tactical Retreats . | . . . Traps | -11 -10 -9 ------- Run | Yrd Mat Mat Traps Triggered 1 | . . 1 Indirectly . | . . . Trap Hack Attempts . | . . . Triggered . | . . . Disarmed . | . . . Reprogrammed . | . . . Reused . | . . . Traps Extracted . | . . . Installed . | . . . Triggered . | . . . Machines | -11 -10 -9 ---------- Run | Yrd Mat Mat Machines Disabled 2 | . . 2 Max in Single Turn 1 | . . 1 Machines Repaired . | . . . Machines Dismantled . | . . . Machines Sabotaged . | . . . Overloaded Fab Kills . | . . . Hacking | -11 -10 -9 --------- Run | Yrd Mat Mat Machines Accessed 2 | . 1 1 Terminals 2 | . 1 1 Fabricators . | . . . Repair Stations . | . . . Recycling Units . | . . . Scanalyzers . | . . . Garrison Access . | . . . Total Hacks 5 | . 2 3 Successful 4 | . 2 2 Failed 1 | . . 1 Catastrophic . | . . . Database Lockouts . | . . . Manual 1 | . 1 . Terminals 5 | . 2 3 Fabricators . | . . . Repair Stations . | . . . Recycling Units . | . . . Scanalyzers . | . . . Garrison Access . | . . . Terminal Hacks 4 | . 2 2 Record 1 | . 1 . Alert Level 1 | . . 1 Locate Traps 1 | . 1 . Reinforcement Status 1 | . . 1 Fabricator Hacks . | . . . Repair Station Hacks . | . . . Recycling Unit Hacks . | . . . Scanalyzer . | . . . Garrison Access Hacks . | . . . Unauthorized Hacks . | . . . Terminals . | . . . Fabricators . | . . . Repair Stations . | . . . Recycling Units . | . . . Scanalyzers . | . . . Garrison Access . | . . . Data Cores Recovered . | . . . Used . | . . . Hacking Detections 1 | . 1 . Full Trace Events . | . . . Feedback Events . | . . . Feedback Blocked . | . . . Robot Schematics Acquired . | . . . Robots Built . | . . . Authchips . | . . . Time . | . . . Total Robot Build Rating . | . . . Part Schematics Acquired . | . . . Parts Built . | . . . Authchips . | . . . Time . | . . . Total Part Build Rating . | . . . Parts Repaired . | . . . Time . | . . . Parts Recycled . | . . . Recycled Matter . | . . . Retrieved Matter . | . . . Retrieved Components . | . . . Parts Scanalyzed . | . . . Part Schematics Acquired . | . . . Parts Damaged . | . . . Bothacking | -11 -10 -9 ------------ Run | Yrd Mat Mat Used RIF Installer . | . . . Robots Hacked 1 | . . 1 Non-combat . | . . . Combat 1 | . . 1 Robot Hacks Applied 1 | . . 1 parse_system 1 | . . 1 Relay Couplers Released . | . . . Fabnet Peak Effective % . | . . . Robots Rewired . | . . . Allies Hacked . | . . . Hacks Repelled . | . . . Allies | -11 -10 -9 -------- Run | Yrd Mat Mat Total Allies . | . . . Largest Group . | . . . Highest-Rated Group . | . . . Highest-Rated Ally . | . . . Total Orders . | . . . Ally Attacks . | . . . Total Damage . | . . . Kills . | . . . Allies Corrupted . | . . . Allies Melted . | . . . Intel | -11 -10 -9 ------- Run | Yrd Mat Mat Robot Analysis Total . | . . . Derelict Logs Recovered . | . . . Drone Launches . | . . . Drone Recoveries . | . . . Exploration | -11 -10 -9 ------------- Run | Yrd Mat Mat Turns Passed 844 | 83 318 443 Spaces Moved 460 | 68 192 200 Core 66 | 35 . 31 Treads 394 | 33 192 169 Legs . | . . . Wheels . | . . . Hover . | . . . Flight . | . . . Fastest Speed 50 | 50 160 50 Average Speed 146 | 103 160 147 Slowest Speed 240 | 160 160 240 Overloaded Moves . | . . . Propulsion Burnouts . | . . . Robots Hopped . | . . . Cave-ins Triggered . | . . . Exploration Rate (%) 16 | 5 29 14 Regions Visited 2 Branch Regions . Pre-discovered Areas . | . . . Known Exits Taken . | . . . Unknown Exits Taken 2 | 1 1 . Scrap Searched . | . . . Spaces Dug . | . . . Terrain Destroyed 51 | . 9 42 Melee . | . . . Projectile . | . . . AOE 51 | . 9 42 Terrain Rammed . | . . . Walls Destroyed . | . . . Machines Disabled . | . . . Actions | -11 -10 -9 --------- Run | Yrd Mat Mat Total 572 | 79 202 291 Wait 18 | . . 18 Move 458 | 67 191 200 Hop . | . . . Pick Up 12 | 5 4 3 Fast Attach 8 | 2 2 4 Attach 8 | 4 . 4 Detach 2 | . 1 1 Swap 1 | . . 1 Drop 2 | . 2 . Fire 41 | . 1 40 Melee 3 | . . 3 Ram 15 | . . 15 Kick . | . . . Crush 4 | 1 1 2 Escape Stasis . | . . . Rewire . | . . . Trap . | . . . Miscellaneous . | . . . Route ------- -11/Scrapyard -10/Materials -9/Materials History --------- Turn | Location | Event 12 | -11/Scrapyard | Discovered new exit (range 16) 84 | -11/Scrapyard | Entered Materials 308 | -10/Materials | Build established: Mutant 366 | -10/Materials | Discovered new exit (range 16) 402 | -10/Materials | Entered another Materials area 402 | -9/Materials | Evolved 2 slots: Utility x2 544 | -9/Materials | Destroyed 8 combat bots 775 | -9/Materials | Lost 4 parts (1p2n1w) 795 | -9/Materials | Core integrity fell below 50% 821 | -9/Materials | Lost 3 parts (3w) 840 | -9/Materials | Core integrity fell below 20% 845 | -9/Materials | Destroyed by Y-45 Defender with Heavy Assault Rifle Last Messages --------------- 00793_ K-01 Serf cleans the Recycling Unit. 00793_ Slammed into R-06 Scavenger. 00796_ Acquired 19 matter. 00796_ Acquired Imp. Ion Engine. 00797_ Acquired 3 matter. 00799_ U-05 Engineer lays Concrete. 00800_ U-05 Engineer builds a Wall. 00804_ Acquired Datajack. 00827_ Processing Tank disabled. 00829_ Jacked Y-45 Defender... >>parse_system Reading system data... 00830_ Datajack destroyed. 00831_ Slammed into Y-45 Defender. 00831_ Destabilizing: System interference. 00831_ Weight Redist. System temporarily disabled. 00832_ Slammed into Y-45 Defender. 00833_ K-01 Serf collects debris. 00833_ Slammed into Y-45 Defender. Map ----- +----------------------------------------------------+ | ?????????????????????????????????????????? | | ?????????????????????????????????????????? | | ?????????????????????????????????????????? | | ?????????????????????????????????????????? | | ?????????????????????????????????????????? | | ?????????????????????????????????????????? | | ?????????????????????????????????????????? | | ?????????????????????????????????????????? | | ?????????????????????????????????????????? | | ?????????????????????????????????????????? | | ???????###???????????????????????????????? | | ??????? ???????????????????????????????? | | ??????? ???????????????????????????????? | | ??????? ???????????????????????????????? | | ???????# #???????????????????????????????? | | ???????# #???????????????????????????????? | | ???????# #???????????????????????????????? | | ???????# #????????##########?????????????? | | ?????### ###??????# #?????????????? | | ?????# ######## ! #?????????????? | | ???? # # #?????????????? | | ???# # + "" #?????????????? | | ???# # # """ #?????????????? | | ??## # " # """ #?????????????? | | ??# ### Y# """ #?????????????? | | ??# " @# """ #?????????????? | | ??##"==! # #?????????????? | | ???#""!! % ##########?????????????? | | #######! "Y" ## ####?????????????? | | # # """ u !=[ ??????? | | # # ######### ####?????????????? | | #""" # |#### #???????????????? | | #""" # # #????????????????????? | | #""" # # #????????????????????? | | #""" + + #????????????????????? | | #""" # # """ """ #????????????????????? | | # # # """ """ #????????????????????? | | # # # """ """ #????????????????????? | | # =# # ?????????????????????? | | # # ##########?????????????????????? | | # ]# #??????????????????????????????? | | ####### ###########????????????????????? | | ####### # #????????????????????? | | # # # #????????????????????? | | # # # """"" #????????????????????? | | # """ # # """"" #????????????????????? | | # """ # + """"" #????????????????????? | | # """ # # #????????????????????? | | # + # #????????????????????? | | # # # #????????????????????? | +----------------------------------------------------+ Best States ------------- Heat Dissipation 28 Energy Generation 10 Energy Capacity 250 Matter Stores 284 Matter Capacity 300 Sight Range 16 Terrain Scan Density 10 Additional Mass Support 6 Evasion (%) 50 Recoil Reduction 2 Item Schematics ----------------- None Robot Schematics ------------------ None Fabricated ------------ Nothing Alien Tech Used ----------------- None Achievements -------------- None Challenges ------------ None Game ------ Seed IntegritySniperChainsword Manual? 0 Play Time 00:07:28 Cumulative 12.4 hours Start 2025.01.16 @ 19:23:20 End 2025.01.16 @ 19:30:15 Sessions 1 Manual Loads 0 Difficulty Rogue Special Mode None Game No. 21 Rogue 19 Adventurer 2 Explorer 0 Win Type - Total 0 Types 0/0/0/0/0/0/0/0/0 Lore% 5 Gallery% 23 Achievement% 17 Wizard Run 0 Options --------- Layout 1 ASCII 0 Keyboard 0 Movement Arrows Keybinds 0 Fullscreen 1 Font 32/SmallcapsGlow Map View 50x35 Zoom Use 0% Tactical HUD 1 Map Filters NONE Filters NONE Steam 1 RUN: 651327d9-fc6a-4dd2-9e0b-54a070342236